bitfinex/quotes_ETHUSD_20240721
["timestamp","ask_amount","ask_price","bid_price","bid_amount"]
[1721587655590,15.20492493,3465.4,3465.3,6.32146]
[1721587656842,15.20492493,3465.4,3465.3,3.43571]
[1721587657132,15.20492493,3465.4,3465.3,6.32146]
[1721587657499,15.20492493,3465.4,3465.3,3.43571]
[1721587657855,15.20492493,3465.4,3465.1,2.8859]
[1721587658431,15.20492493,3465.4,3465.2,2.88583]
[1721587658630,15.20492493,3465.4,3465.2,5.77159]
[1721587659033,15.20492493,3465.4,3465.3,2.88575]
[1721587659245,15.20492493,3465.4,3464.6,3.0]
[1721587659443,15.20492493,3465.4,3464.4,2.88642]
[1721587659444,15.20492493,3465.4,3465.1,2.8859]
[1721587659739,0.04358141,3465.4,3465.3,2.88575]
[1721587660142,7.48,3466.1,3465.2,2.8858]
[1721587660348,7.48,3466.1,3465.3,2.88571]
[1721587660349,0.748,3466.0,3465.3,2.88571]
[1721587660550,0.78660802,3466.0,3465.4,2.88566]
[1721587660717,0.78660802,3466.0,3465.5,2.88554]
[1721587661142,3.78660802,3466.0,3465.3,2.88568]
[1721587661373,3.78660802,3466.0,3465.0,2.88594]
[1721587661658,0.3280909,3465.9,3465.6,2.88546]
[1721587661808,0.03860802,3466.0,3465.6,2.88546]
[1721587662954,0.03860802,3466.0,3465.6,2.88542]
[1721587663252,0.03860802,3466.0,3465.6,2.88545]
[1721587663414,0.03860802,3466.0,3465.9,2.88525]
[1721587663619,19.93569273,3466.0,3465.9,2.88525]
[1721587663879,19.93569273,3466.0,3465.9,3.173775]
[1721587664155,19.93569273,3466.0,3465.9,2.88525]
[1721587664370,19.95515025,3466.0,3465.9,2.88525]
[1721587664517,19.93569273,3466.0,3465.9,2.88525]
[1721587664717,19.93498491,3466.0,3465.9,2.88525]
[1721587664930,19.93498491,3466.0,3465.9,5.7705]
[1721587665130,19.93498491,3466.0,3465.9,6.34755]
[1721587665531,0.01498491,3466.0,3465.9,6.89755]
[1721587665736,19.92,3466.6,3465.9,6.89755]
[1721587665956,19.92,3466.6,3466.5,5.7695]
[1721587666467,19.92,3466.6,3466.5,2.88475]
[1721587667316,19.92,3466.6,3466.5,6.057975]
[1721587668135,12.41,3467.6,3467.0,2.88433]
[1721587668136,19.92,3467.1,3467.0,2.88433]
[1721587668542,19.92,3467.1,3467.0,5.76866]
[1721587670660,19.92,3467.1,3467.0,2.88433]
[1721587671459,19.92,3467.1,3466.8,2.88449]
[1721587671661,19.92,3467.6,3466.9,2.88442]
[1721587671962,0.03313536,3467.5,3466.6,2.88463]
[1721587672162,19.92,3467.6,3466.5,3.173175]
[1721587672163,19.92,3467.6,3466.5,0.288475]
[1721587672335,19.92,3467.6,3466.8,2.8845]
[1721587672744,19.92,3467.6,3466.0,5.29829]
[1721587672745,2.9303148,3467.5,3466.0,5.2983]
[1721587673039,2.9303148,3467.5,3466.3,2.88491]
[1721587673040,2.339,3467.3,3466.3,2.88491]
[1721587673434,0.01825316,3467.2,3466.3,2.88485]
[1721587673879,0.01825316,3467.2,3466.1,0.587535]
[1721587674039,0.01825316,3467.2,3466.1,2.88501]
[1721587674350,0.05138852,3467.2,3466.1,2.88501]
[1721587675080,0.05138852,3467.2,3465.3,5.45085844]
[1721587675081,0.05138852,3467.2,3465.8,2.88527]
[1721587675307,19.92,3467.1,3465.8,2.88527]
[1721587675505,0.03313536,3467.0,3465.8,2.88527]
[1721587675719,0.02158946,3467.0,3465.9,0.288527]
[1721587675870,0.02158946,3467.0,3466.2,2.88498]
[1721587676072,0.02158946,3467.0,3465.9,3.173757]
[1721587676273,0.02158946,3467.0,3466.2,2.88497]
[1721587676574,0.02158946,3467.0,3465.9,0.288527]
[1721587676780,0.02158946,3467.0,3466.4,2.88479]
[1721587677085,0.02158946,3467.0,3466.5,2.88473]
[1721587677284,2.37695046,3467.0,3465.9,0.288527]
[1721587677485,2.37695046,3467.0,3464.7,2.604]
[1721587677486,2.37917525,3467.0,3465.6,2.88547]
[1721587677809,2.37917525,3467.0,3464.7,2.604]
[1721587677810,2.38053738,3467.0,3465.9,2.88523]
[1721587678331,2.34962711,3467.0,3466.1,2.88507]
[1721587678470,2.34962711,3467.0,3464.8,0.14825271]
[1721587678471,2.34962711,3467.0,3465.9,2.88524]
[1721587678676,2.35271527,3467.0,3466.3,2.88491]
[1721587679419,0.01816639,3467.0,3466.3,0.577004]
[1721587679578,0.01816639,3467.0,3466.4,0.55]
[1721587679769,0.01816639,3467.0,3466.3,2.9632]
[1721587680012,0.01816639,3467.0,3466.9,2.88442]
[1721587680013,19.9629337,3467.0,3466.9,2.88442]
[1721587680184,19.94094992,3467.0,3466.9,2.88442]
[1721587680385,19.94094992,3467.0,3466.9,5.76884]
[1721587680804,19.94094992,3467.0,3466.9,3.461304]
[1721587681177,19.94094992,3467.0,3466.9,6.345724]
[1721587681623,19.92278353,3467.0,3466.9,6.345724]
[1721587681934,19.94158946,3467.0,3466.9,6.345724]
[1721587682482,19.94158946,3467.0,3466.9,3.461304]
[1721587682723,19.94158946,3467.0,3466.9,6.345724]
[1721587683037,19.94158946,3467.0,3466.9,3.461304]
[1721587683198,19.94158946,3467.0,3466.9,2.88442]
[1721587683400,19.94158946,3467.0,3466.7,2.88458]
[1721587683588,19.94158946,3467.0,3466.3,2.9632]
[1721587683590,19.96323701,3467.0,3466.8,2.88449]
[1721587683790,19.94325775,3467.0,3466.8,2.88449]
[1721587683994,19.94325775,3467.0,3466.3,2.9632]
[1721587683995,19.94325775,3467.0,3466.6,2.88465]
[1721587684328,19.94325775,3467.0,3466.5,2.88474]
[1721587684329,19.96323701,3467.0,3466.5,2.88474]
[1721587684691,19.96323701,3467.0,3466.5,5.76948]
[1721587684950,19.96323701,3467.0,3466.5,0.576948]
[1721587685089,19.96323701,3467.0,3465.9,5.604]
[1721587685090,19.96323701,3467.0,3466.9,2.88442]
[1721587685433,19.94325775,3467.0,3466.9,2.88442]
[1721587686097,19.94325775,3467.0,3466.9,5.76884]
[1721587686830,7.48,3467.8,3467.6,2.88383]
[1721587686831,14.9201,3467.7,3467.6,2.88383]
[1721587687131,14.93426707,3467.7,3467.4,2.88398]
[1721587687338,14.9201,3467.6,3467.5,2.88391]
[1721587687643,14.93593481,3467.6,3467.5,2.88391]
[1721587688140,14.93593481,3467.6,3467.5,5.76783]
[1721587688497,14.9201,3467.6,3467.5,5.76783]
[1721587688850,14.93248065,3467.6,3467.5,8.65175]
[1721587689143,14.93248065,3467.6,3467.5,13.1246064]
[1721587689303,14.9359312,3467.6,3467.5,13.1246064]
[1721587689502,14.93168173,3467.6,3467.5,13.1246064]
[1721587691241,0.01158173,3467.6,3467.5,18.0785064]
[1721587691404,14.9201,3468.2,3467.9,2.88355]
[1721587691609,14.9201,3468.2,3468.0,2.88348]
[1721587691853,14.9201,3468.2,3467.9,2.88351]
[1721587692217,14.9201,3468.2,3467.2,2.8841]
[1721587692412,2.4531,3468.5,3467.3,2.88408]
[1721587692413,14.95323536,3468.1,3467.3,2.88408]
[1721587692606,14.95323536,3468.1,3466.8,2.88448]
[1721587692607,0.03313536,3468.0,3466.8,2.88448]
[1721587692841,14.9201,3467.9,3466.9,2.88439]
[1721587693232,14.9201,3467.9,3466.7,2.88458]
[1721587693550,14.9201,3467.9,3467.1,2.88425]
[1721587693701,14.9201,3467.9,3466.7,2.88457]
[1721587693902,14.9201,3467.9,3466.7,2.88458]
[1721587694116,14.9201,3467.9,3466.8,2.88447]
[1721587694342,14.9201,3467.9,3466.9,2.88441]
[1721587695020,14.9201,3467.9,3466.4,5.23465]
[1721587695200,5.48623536,3467.8,3466.4,2.88483]
[1721587695404,5.4531,3467.8,3466.7,2.88458]
[1721587695837,5.4531,3467.8,3466.7,2.88451]
[1721587696099,14.9201,3467.9,3467.3,2.88407]
[1721587696337,14.9201,3467.9,3466.6,2.3499]
[1721587696338,14.9201,3467.8,3467.7,2.88375]
[1721587696549,14.9201,3467.8,3467.4,0.288407]
[1721587696722,14.9201,3467.8,3466.4,3.037]
[1721587696723,14.9201,3467.8,3466.7,2.88451]
[1721587696901,14.9201,3467.7,3466.7,2.88451]
[1721587697101,9.9331,3467.9,3466.5,2.88473]
[1721587697102,14.9201,3467.6,3466.5,2.88473]
[1721587697603,14.9201,3467.6,3466.2,3.0]
[1721587697604,14.9201,3467.6,3466.9,2.88441]
[1721587697806,14.9201,3467.6,3467.0,2.8843]
[1721587698042,14.9201,3467.6,3467.0,2.88426]
[1721587698258,14.9201,3467.6,3466.3,2.66167728]
[1721587698401,14.9201,3467.6,3467.0,2.88426]
[1721587698831,14.9201,3467.6,3466.4,3.0]
[1721587699103,14.9201,3467.6,3466.4,2.88477]
[1721587699302,14.9201,3467.6,3466.5,2.88472]
[1721587699303,2.48623536,3467.5,3466.5,2.88472]
[1721587699957,2.48623536,3467.5,3466.3,2.88484]
[1721587700743,2.48623536,3467.5,3466.0,2.88509]
[1721587700928,2.48623536,3467.5,3465.8,2.88529]
[1721587700929,25.28412,3467.4,3465.8,2.88529]
[1721587701241,0.72183591,3467.3,3465.3,5.0563]
[1721587701477,0.72183591,3467.3,3465.8,2.88531]
[1721587701478,7.48,3467.0,3465.8,2.88531]
[1721587701664,7.48,3467.0,3465.5,2.88551]
[1721587701665,0.03313536,3466.9,3465.5,2.88551]
[1721587701808,3.72191457,3466.9,3465.6,3.419281]
[1721587702139,0.68877921,3466.8,3465.6,3.419281]
[1721587702343,18.09431457,3466.7,3465.1,2.88584]
[1721587702643,3.12425475,3466.6,3464.8,2.88609]
[1721587702849,3.12425475,3466.6,3464.6,2.4523]
[1721587702850,7.48,3466.4,3464.6,2.4523]
[1721587703010,7.48,3466.4,3465.2,2.88581]
[1721587703210,7.48,3466.4,3465.9,2.8852]
[1721587703211,0.04288677,3466.3,3465.9,2.8852]
[1721587703515,0.04288677,3466.3,3465.3,2.892581]
[1721587703516,14.9201,3466.2,3465.7,2.8854]
[1721587703744,14.9201,3466.2,3465.4,2.88559]
[1721587704046,0.04288677,3466.1,3465.5,2.88558]
[1721587704417,0.04288677,3466.1,3465.3,0.288581]
[1721587704823,0.07602213,3466.1,3464.9,3.0]
[1721587705005,14.9201,3466.0,3465.0,2.88599]
[1721587705232,0.03313536,3465.9,3464.8,2.88616]
[1721587705430,0.07308131,3465.9,3464.8,2.88616]
[1721587705676,0.03994595,3465.9,3464.8,2.88616]
[1721587705827,0.03994595,3465.9,3465.1,2.8859]
[1721587706228,14.9201,3465.8,3464.5,2.88637]
[1721587706520,14.9201,3465.8,3464.8,2.88615]
[1721587706521,0.04277007,3465.7,3464.8,2.88615]
[1721587706929,0.04277007,3465.7,3465.1,2.8859]
[1721587707130,0.04277007,3465.7,3464.8,2.604]
[1721587707131,14.9201,3465.6,3464.8,2.604]
[1721587707325,14.9201,3465.6,3465.5,5.77116]
[1721587709081,3.04515233,3467.0,3465.5,2.88558]
[1721587709082,14.9201,3466.1,3465.5,2.88558]
[1721587709232,14.9201,3466.1,3466.0,2.88517]
[1721587710078,14.9201,3466.1,3466.0,5.77034]
[1721587710551,14.9201,3466.1,3465.9,2.88517]
[1721587711067,14.9201,3466.1,3465.3,5.604]
[1721587711068,14.9201,3466.1,3465.7,2.8854]
[1721587712190,14.9201,3466.1,3465.5,2.88558]
[1721587712365,14.9201,3466.1,3465.7,2.88541]
[1721587712527,14.9201,3466.1,3465.8,2.88531]
[1721587712758,14.9201,3466.1,3465.6,2.8855]
[1721587713196,14.9201,3466.0,3465.4,2.88566]
[1721587713596,14.9201,3466.0,3465.5,2.88554]
[1721587713814,14.9201,3466.0,3465.9,2.88525]
[1721587714163,14.9201,3466.0,3465.9,5.7705]
[1721587715101,14.9201,3466.0,3465.4,0.59165407]
[1721587715408,14.9201,3466.0,3465.4,2.88559]
[1721587715409,0.03994595,3465.9,3465.4,2.88559]
[1721587715614,0.03994595,3465.9,3465.8,2.88533]
[1721587715764,7.48,3466.5,3465.7,2.88541]
[1721587716103,7.48,3466.5,3465.1,2.604]
[1721587716104,0.03160064,3466.4,3465.5,2.88555]
[1721587716325,0.03160064,3466.4,3465.1,2.604]
[1721587716610,0.03160064,3466.4,3466.2,2.885]
[1721587716611,19.92,3466.3,3466.2,2.885]
[1721587716821,0.3017943,3467.1,3465.6,2.4523]
[1721587716822,19.92,3466.6,3466.3,2.88492]
[1721587716960,19.92,3466.6,3466.0,2.604]
[1721587716961,19.92,3466.6,3466.5,2.88475]
[1721587717300,19.92,3466.6,3466.4,2.88483]
[1721587717609,19.92,3466.6,3466.1,2.88503]
[1721587717610,0.02993187,3466.5,3466.3,2.88491]
[1721587717777,0.02993187,3466.5,3466.1,2.88503]
[1721587717966,19.92,3466.6,3465.6,2.4523]
[1721587718292,0.06306723,3466.5,3465.7,3.39097]
[1721587718622,0.06306723,3466.5,3465.3,2.88575]
[1721587718764,0.06306723,3466.5,3464.7,2.88623]
[1721587718765,19.92,3466.4,3465.5,2.88557]
[1721587718959,0.04291207,3466.3,3465.5,2.88557]
[1721587719824,0.04291207,3466.3,3464.0,0.5954314]
[1721587719825,2.4523,3466.1,3464.0,0.5954314]
[1721587720021,2.4523,3466.1,3464.1,0.14885785]
[1721587720022,7.48,3465.7,3464.1,0.14885785]
[1721587720183,7.48,3465.7,3464.2,2.88666]
[1721587720184,0.04284012,3465.6,3464.2,2.88666]
[1721587720382,0.04284012,3465.6,3464.8,2.88612]
[1721587720582,19.92,3465.5,3464.8,2.88612]
[1721587720885,19.92,3465.5,3464.1,0.14885785]
[1721587721090,7.48,3465.7,3464.1,0.14885785]
[1721587721091,2.3009,3465.3,3464.1,0.14885785]
[1721587721314,0.03313536,3465.2,3464.1,0.14885785]
[1721587721661,0.04284012,3465.1,3464.1,0.14885785]
[1721587721902,0.03313536,3465.0,3464.1,0.14885785]
[1721587722111,0.04284012,3465.1,3464.1,0.14885785]
[1721587722318,2.3009,3465.3,3464.2,0.30356879]
[1721587722607,2.3009,3465.3,3464.3,2.8865]
[1721587722807,0.04284012,3465.2,3464.3,2.8865]
[1721587723682,0.04284012,3465.2,3464.4,2.88643]
[1721587723869,0.04284012,3465.2,3464.5,2.88637]
[1721587724067,0.04284012,3465.2,3464.5,0.56918822]
[1721587724375,19.92,3465.6,3464.2,0.30356879]
[1721587724376,0.04251912,3465.1,3464.9,2.88606]
[1721587724584,7.48,3465.7,3464.9,2.88606]
[1721587724585,19.92,3465.0,3464.9,2.88606]
[1721587724780,19.92,3465.0,3464.9,5.77214]
[1721587725018,19.96251912,3465.0,3464.9,5.77214]
[1721587725899,19.96251912,3465.0,3464.9,2.88606]
[1721587726097,19.96251912,3465.0,3464.7,2.88622]
[1721587726271,19.96251912,3465.0,3464.3,2.88651]
[1721587726471,19.96251912,3465.0,3464.6,2.88632]
[1721587726892,19.96251912,3465.0,3463.8,2.88697]
[1721587726893,2.3009,3464.9,3463.8,2.88697]
[1721587727073,2.3009,3464.9,3462.3,2.604]
[1721587727074,0.04241797,3464.8,3462.3,2.604]
[1721587727399,0.03313536,3464.7,3463.4,2.88725]
[1721587727774,0.04239073,3464.6,3463.4,2.88725]
[1721587727996,0.03313536,3464.5,3463.2,2.88749]
[1721587728205,0.04213378,3464.4,3463.2,2.88749]
[1721587728410,0.03313536,3464.3,3463.2,2.88749]
[1721587728874,2.88622,3464.8,3463.2,2.88749]
[1721587728875,0.2967956,3464.2,3463.2,2.88746]
[1721587729123,0.2967956,3464.2,3464.1,2.88675]
[1721587729277,2.3009,3464.9,3464.1,2.88675]
[1721587729474,19.92,3465.5,3463.4,2.2784]
[1721587729475,0.04190408,3464.8,3464.2,2.88661]
[1721587729709,0.03313536,3465.4,3464.2,2.88661]
[1721587729710,3.58313536,3465.4,3464.2,2.88661]
[1721587729919,0.04190408,3464.7,3464.2,2.88661]
[1721587730083,0.29671945,3465.1,3464.0,2.88681]
[1721587730084,0.03313536,3465.0,3464.0,2.88681]
[1721587730291,0.04190408,3464.9,3464.0,2.88681]
[1721587732014,0.03313536,3464.8,3463.6,2.88713]
[1721587732222,0.03313536,3464.8,3462.5,3.037]
[1721587732223,3.037,3464.6,3463.1,2.88755]
[1721587732522,3.037,3464.6,3463.1,2.88756]
[1721587732523,30.43313536,3464.5,3463.1,2.88756]
[1721587732751,2.8865,3464.4,3463.1,2.88756]
[1721587732913,3.03313536,3464.3,3463.1,2.88756]
[1721587733114,3.03313536,3464.3,3463.2,2.8875]
[1721587733115,3.0,3464.3,3463.2,2.8875]
[1721587733351,27.4,3464.5,3463.5,2.88724]
[1721587733352,19.96198391,3464.2,3463.5,2.88724]
[1721587733713,19.96198391,3464.2,3463.6,2.88716]
[1721587733919,19.96198391,3464.2,3463.5,2.88716]
[1721587735735,19.96198391,3464.2,3463.2,2.88744]
[1721587736082,5.18812,3463.6,3462.1,2.88837]
[1721587736263,5.18812,3463.6,3461.1,3.6440372]
[1721587736264,27.43313536,3463.5,3462.3,2.88823]
[1721587736474,30.43313536,3463.5,3462.3,2.88823]
[1721587736659,0.04185735,3463.4,3462.6,2.88799]
[1721587737280,0.04185735,3463.4,3462.3,2.88823]
[1721587738387,0.04185735,3463.4,3462.6,2.88799]
[1721587738879,0.04185735,3463.4,3463.0,2.88766]
[1721587739109,0.04185735,3463.4,3463.2,2.8875]
[1721587739110,19.92,3463.3,3463.2,2.8875]
[1721587739381,19.92,3463.3,3463.2,5.775]
[1721587739382,19.96168591,3463.3,3463.2,5.775]
[1721587739537,19.92,3463.8,3463.7,5.77416]
[1721587740463,19.92,3463.8,3463.7,3.464496]
[1721587740650,19.92,3463.8,3463.7,6.351576]
[1721587740853,19.92,3463.8,3463.7,3.464496]
[1721587741376,19.92,3463.8,3463.7,2.88708]
[1721587741793,19.92,3463.8,3463.6,2.88713]
[1721587741794,19.92,3464.3,3462.8,2.8878]
[1721587741966,0.03313536,3464.2,3462.8,2.8878]
[1721587742281,0.03313536,3464.2,3462.9,2.88774]
[1721587742282,0.32989968,3464.2,3462.9,2.88774]
[1721587742993,2.4212,3464.0,3462.7,2.8879]
[1721587743197,2.4212,3464.0,3462.2,2.3644]
[1721587743198,0.58313536,3463.9,3462.2,2.3644]
[1721587743481,0.58313536,3463.9,3462.6,2.888]
[1721587743482,3.58313536,3463.9,3462.6,2.888]
[1721587743643,3.03313536,3463.9,3462.6,2.888]
[1721587744157,3.03313536,3463.9,3462.6,2.88792]
[1721587744361,3.03313536,3463.9,3462.1,0.14979289]
[1721587744362,3.03313536,3463.9,3463.0,2.88765]
[1721587744545,3.0,3463.9,3463.0,2.88765]
[1721587745348,3.0,3463.9,3462.7,2.88786]
[1721587745569,0.03313536,3463.9,3463.1,2.88758]
[1721587745888,19.92,3463.8,3463.0,2.88759]
[1721587746191,3.0,3463.7,3462.8,2.88783]
[1721587746343,3.0,3463.7,3462.4,2.88813]
[1721587746544,3.0,3463.7,3461.7,5.39825373]
[1721587746545,19.92,3463.8,3462.5,2.88807]
[1721587746879,19.92,3463.8,3462.1,2.604]
[1721587746880,19.92,3463.8,3463.6,2.88713]
[1721587747095,0.29676432,3464.2,3462.7,2.3644]
[1721587747096,19.92,3464.1,3462.7,2.3644]
[1721587747244,0.04025355,3463.7,3463.4,2.88726]
[1721587747445,19.92,3463.6,3463.4,2.88729]
[1721587747650,0.04025355,3463.5,3463.2,2.88749]
[1721587748052,0.04025355,3463.5,3463.2,2.88742]
[1721587748252,0.04025355,3463.5,3463.2,2.88745]
[1721587749547,0.04025355,3463.5,3463.3,2.88741]
[1721587749882,0.04025355,3463.5,3463.4,5.77466]
[1721587750561,0.04025355,3463.5,3463.4,2.88733]
[1721587751792,0.04025355,3463.5,3463.4,5.77466]
[1721587751960,19.96025355,3463.5,3463.4,2.88733]
[1721587752303,19.96025355,3463.5,3463.3,2.88733]
[1721587752453,19.96025355,3463.5,3463.3,2.88734]
[1721587752649,19.96025355,3463.5,3462.9,2.88773]
[1721587752982,19.96025355,3463.5,3463.0,2.88764]
[1721587753749,19.96025355,3463.5,3462.8,2.8878]
[1721587753951,19.96025355,3463.5,3462.7,2.88791]
[1721587754230,19.92,3463.4,3462.7,2.88791]
[1721587754493,19.92,3463.4,3463.3,2.88741]
[1721587754873,19.92,3463.4,3463.3,5.77482]
[1721587755255,19.92,3463.4,3463.3,6.352302]
[1721587756697,19.92,3463.7,3463.6,5.77432]
[1721587756906,19.92,3464.2,3463.9,2.88689]
[1721587757262,0.03313536,3464.1,3463.7,2.88705]
[1721587757462,0.03313536,3464.1,3463.4,2.88733]
[1721587758028,0.03313536,3464.1,3463.6,2.88714]
[1721587758172,0.03313536,3464.1,3463.7,2.88706]
[1721587758893,19.92,3464.2,3463.7,2.88706]
[1721587759080,19.92,3464.2,3464.0,2.88681]
[1721587759819,19.92,3464.2,3463.3,2.88733]
[1721587760016,19.92,3464.2,3464.0,2.88677]
[1721587760718,19.92,3464.2,3464.1,2.88675]
[1721587761686,19.92,3464.2,3464.1,6.350866]
[1721587761919,19.92,3464.6,3464.4,2.88647]
[1721587762110,19.92,3464.7,3464.6,2.88633]
[1721587762305,19.92,3464.7,3464.6,5.77266]
[1721587762505,19.94328611,3464.7,3464.6,5.77266]
[1721587762907,19.94328611,3464.7,3464.6,9.524906]
[1721587763105,0.02328611,3464.7,3464.6,9.524906]
[1721587763345,0.02328611,3464.7,3464.6,12.524906]
[1721587763516,19.92,3465.0,3464.9,8.65824]
[1721587764045,19.92,3465.0,3464.9,14.05734]
[1721587764206,18.88774398,3465.0,3464.9,15.8100656]
[1721587765342,18.88774398,3465.0,3464.9,12.9239856]
[1721587766413,18.88774398,3465.0,3464.9,15.8100656]
[1721587766615,18.88774398,3465.0,3464.9,12.9239856]
[1721587766836,18.88774398,3465.5,3465.4,2.88566]
[1721587767574,18.88774398,3465.5,3465.4,5.77132]
[1721587769359,18.88774398,3465.5,3465.4,6.298452]
[1721587770233,18.88774398,3465.5,3465.4,2.83566]
[1721587771767,18.88774398,3465.5,3464.7,2.88622]
[1721587771768,18.88774398,3465.5,3464.7,2.88624]
[1721587771928,18.88774398,3465.4,3464.5,2.88639]
[1721587772127,18.88774398,3465.4,3464.1,2.88668]
[1721587772432,18.88774398,3465.4,3464.4,2.8865]
[1721587773452,18.88774398,3465.4,3464.8,2.88615]
[1721587773655,18.88774398,3465.4,3465.0,2.88598]
[1721587773956,18.88774398,3465.4,3465.0,2.83598]
[1721587774152,18.88774398,3465.4,3465.2,2.88582]
[1721587774554,18.88774398,3465.4,3464.7,2.88621]
[1721587774768,18.88774398,3465.4,3464.9,2.88606]
[1721587774972,18.88774398,3465.4,3464.9,5.77212]
[1721587775279,18.88774398,3465.4,3464.9,2.88606]
[1721587775589,18.88774398,3465.4,3464.5,2.88641]
[1721587775788,18.92087934,3465.3,3464.5,2.88636]
[1721587775942,18.88774398,3465.3,3464.6,2.88632]
[1721587776140,18.88774398,3465.3,3464.7,2.88624]
[1721587777706,0.04092701,3465.2,3464.9,2.88605]
[1721587777925,0.01283435,3465.2,3464.9,2.88605]
[1721587778067,18.88774398,3465.1,3464.9,0.577229]
[1721587778272,18.88774398,3465.1,3465.0,8.658]
[1721587778700,18.90725998,3465.1,3465.0,8.658]
[1721587778974,18.90224844,3465.1,3465.0,9.208]
[1721587779309,18.90224844,3465.1,3465.0,5.772]
[1721587779520,18.90224844,3465.1,3464.6,3.0]
[1721587779521,18.90224844,3465.1,3464.8,2.88614]
[1721587779721,18.90224844,3465.1,3464.6,2.88625]
[1721587780022,18.90224844,3465.1,3464.2,2.88659]
[1721587780023,18.88774398,3465.0,3464.2,2.88659]
[1721587780321,18.88774398,3465.0,3464.3,2.88656]
[1721587780322,18.92087934,3465.0,3464.3,2.88656]
[1721587780524,2.4523,3465.5,3463.1,2.88754]
[1721587780525,21.90558894,3464.9,3463.1,2.88754]
[1721587780690,7.48,3464.7,3463.8,2.88692]
[1721587781020,7.48,3464.7,3463.6,2.88715]
[1721587781021,18.91060042,3464.6,3463.6,2.88715]
[1721587781175,18.91060042,3464.6,3463.5,2.88718]
[1721587781614,18.91060042,3464.6,3463.7,2.88707]
[1721587781821,0.03313536,3464.5,3463.6,2.88714]
[1721587782191,0.02677651,3464.4,3463.6,2.88714]
[1721587782932,18.88774398,3464.6,3463.6,2.88714]
[1721587783090,0.02902604,3464.3,3463.6,2.88714]
[1721587783295,0.02568431,3464.5,3463.6,2.88714]
[1721587783534,0.03069705,3464.2,3463.6,2.88714]
[1721587783680,18.88774398,3464.6,3463.6,2.88714]
[1721587783885,18.88774398,3464.6,3463.3,2.88735]
[1721587783886,0.03236815,3464.1,3463.3,2.88735]
[1721587784127,18.88774398,3464.6,3463.3,2.88735]
[1721587784128,18.88774398,3464.6,3463.3,3.176085]
[1721587784332,0.03403935,3464.0,3463.3,2.88735]
[1721587784486,18.88774398,3463.9,3463.3,2.88735]
[1721587784686,18.92403334,3463.9,3463.6,2.88716]
[1721587785715,18.92403334,3463.9,3463.7,2.88708]
[1721587786430,18.92403334,3463.9,3463.5,2.88722]
[1721587787488,18.92403334,3463.9,3462.6,2.88793]
[1721587787489,18.92087934,3463.8,3462.6,2.88793]
[1721587787695,0.03628936,3463.9,3462.1,2.8884]
[1721587787696,18.88774398,3463.7,3462.7,2.88784]
[1721587787922,18.92737626,3463.7,3462.7,2.88784]
[1721587788819,18.92737626,3463.7,3462.8,2.88783]
[1721587789031,18.92737626,3463.7,3463.2,2.88748]
[1721587789381,18.92737626,3463.7,3463.3,2.88738]
[1721587789587,18.88774398,3463.6,3463.1,2.88758]
[1721587789830,0.04045198,3463.5,3463.1,2.88758]
[1721587790200,0.04045198,3463.5,3463.2,2.88746]
[1721587790420,0.04045198,3463.5,3463.0,5.77525]
[1721587790723,0.04045198,3463.5,3463.0,2.88759]
[1721587791817,0.04045198,3463.5,3463.3,2.88738]
[1721587792032,0.04045198,3463.5,3463.1,2.88757]
[1721587792491,0.04045198,3463.5,3463.2,2.88742]
[1721587793326,0.04045198,3463.5,3463.0,2.88764]
[1721587793527,18.88774398,3463.4,3463.1,2.88758]
[1721587793730,18.88774398,3463.4,3463.2,2.88748]
[1721587793905,0.04030981,3463.3,3463.2,2.88748]
[1721587795499,0.04030981,3463.3,3463.1,2.88758]
[1721587795888,0.04030981,3463.3,3463.2,2.8875]
[1721587797712,0.04030981,3463.3,3463.0,2.88766]
[1721587797950,0.04030981,3463.3,3461.9,2.6787]
[1721587797951,18.88774398,3463.2,3461.9,2.6787]
[1721587798263,18.88774398,3463.1,3462.7,2.88786]
[1721587798550,18.88774398,3463.0,3462.7,2.88786]
[1721587798756,18.88774398,3463.0,3462.9,2.88775]
[1721587798913,18.92801873,3463.0,3462.9,2.88775]
[1721587801650,18.92801873,3463.0,3462.2,2.88831]
[1721587801851,18.92801873,3463.0,3462.8,2.88781]
[1721587802054,18.92801873,3463.0,3462.9,5.7755]
[1721587802355,0.04027475,3463.0,3462.9,10.62525]
[1721587802658,18.88774398,3463.5,3463.4,5.77466]
[1721587803217,18.88774398,3463.5,3463.4,2.88733]
[1721587803531,18.88774398,3463.5,3463.4,5.77466]
[1721587803927,18.88774398,3463.5,3463.4,2.88733]
[1721587804165,18.88774398,3463.5,3463.2,2.8875]
[1721587804485,18.88774398,3463.5,3463.1,2.88755]
[1721587804775,18.88774398,3463.5,3463.0,2.88766]
[1721587805147,18.88774398,3463.5,3462.6,2.88799]
[1721587805446,18.88774398,3463.4,3462.9,2.88771]
[1721587805650,18.88774398,3463.4,3463.2,2.88749]
[1721587806271,18.88774398,3463.4,3463.3,2.88741]
[1721587806476,18.88774398,3463.4,3462.5,7.85001]
[1721587806652,18.88774398,3463.3,3462.6,3.901421]
[1721587806837,7.48,3463.6,3462.3,2.2849]
[1721587806838,18.88774398,3463.2,3462.3,2.2849]
[1721587807059,18.88774398,3463.2,3461.8,2.5733]
[1721587807307,18.88774398,3463.1,3461.8,2.5733]
[1721587807590,0.04023188,3463.0,3461.8,5.46194]
[1721587807961,0.04023188,3463.0,3461.9,2.88858]
[1721587808302,0.04023188,3463.0,3462.1,1.962]
[1721587808598,18.92797586,3463.0,3462.8,2.8878]
[1721587808801,18.88774398,3462.9,3462.7,2.88791]
[1721587808960,0.04013251,3462.8,3462.5,2.88801]
[1721587809160,0.04013251,3462.8,3462.7,2.88791]
[1721587809377,0.04013251,3462.8,3462.6,2.888]
[1721587809587,0.04013251,3462.8,3461.7,3.0364954]